{"text_format":"1","workbook":"xlsx","n_sheets":6,"sheets":["Sensorial","Math","Students","ReportInput","Report","AUX"],"not_rendered":{"charts":0,"images":0,"macros":1,"external_links":0,"defined_names":13,"comments":0,"pivot_tables":0},"unopened":[],"bounds":{"document_bytes":16777216,"sheet_cells":100000,"rows_first":2000,"rows_last":500,"rows_between":2000,"halvings":0,"cell_chars":16384,"cell_head_chars":4096},"cells_cut":0,"cells_raw":0,"read":"whole","date_system":"1900"}

{"sheet":"Sensorial","index":0,"n_rows":18,"n_cols":29,"rows_kept":18,"cut":false,"hidden":false,"merged":[[0,2,0,4],[0,15,0,19],[0,21,0,24],[0,25,0,27]]}
[null,null,"Knobbed",null,null,null,null,null,null,null,null,null,null,null,null,"Knobless Cylinders",null,null,null,null,null,"Geometry Cabinet",null,null,null,"Construct. Triangles"]
[null,null,"x 1","x 2","Blindfold","Pink Tower","Brown Stairs","Pink + Brown","Red Rods","Color Box II","Color Book","Color Box III","Binomial Cube","Trinomial Cube","Sound Cylinders","Yellow","Red","Green","Blue","x 2","Patterning","Intro","Circle","Polygons","Curvelinears","Triangular Box","Rectangular Box","Large Hex Box","Mystery Bag"]
[]
["Allison Rogers",{"$f":"VLOOKUP(A4,Students_Table[],6,FALSE)","v":false},3,null,null,3,3,null,null,3,3,3,2,null,null,3,3,3,3,3,null,null,null,2,null,null,null,null,3]
["Andy Beckman",{"$f":"VLOOKUP(A5,Students_Table[],6,FALSE)","v":false},3,3,3,3,3,3,3,3,3,3,1,null,1,3,3,3,3,3,null,null,null,null,null,1,null,null,3]
["Brad Clayton",{"$f":"VLOOKUP(A6,Students_Table[],6,FALSE)","v":false},3,3,null,3,3,3,3,3,3,3,3,3,2,3,3,3,3,3,3,null,null,3,2,3,null,null,1]
["Carolyn Sinclair",{"$f":"VLOOKUP(A7,Students_Table[],6,FALSE)","v":false},3,3,3,3,3,3,3,3,3,3,null,null,3,3,3,3,3,3,null,null,null,2,null,3,3,3]
["Charlie Newman",{"$f":"VLOOKUP(A8,Students_Table[],6,FALSE)","v":true},3,3,null,3,3,3,3,3,null,3,3,2,2,3,3,3,3,3,null,null,null,2,2,3,null,null,2]
["Debbie Perry",{"$f":"VLOOKUP(A9,Students_Table[],6,FALSE)","v":false},3,3,null,3,3,3,3,3,3,3,3,2,1,3,3,3,3,3,null,null,null,2,null,3,null,null,1]
["Gina Alberts",{"$f":"VLOOKUP(A10,Students_Table[],6,FALSE)","v":false},3,2,null,3,1,1,null,1,1,1]
["Ian Emerson",{"$f":"VLOOKUP(A11,Students_Table[],6,FALSE)","v":false},3,3,null,3,3,3,3,3,3,3,null,null,2,3,3,3,3,3,3,null,null,2,null,3,null,3,3]
["Katherine  Trent",{"$f":"VLOOKUP(A12,Students_Table[],6,FALSE)","v":false},3,3,null,3,3,3,3,3,3,3,null,null,2,3,3,3,3,3,null,null,null,2,null,3]
["Kevin Abbott",{"$f":"VLOOKUP(A13,Students_Table[],6,FALSE)","v":false},3,3,null,3,3,3,3,3,2,1,null,null,1,3,3,3,3,3,null,null,null,null,null,null,null,null,3]
["Kimberly Wilson",{"$f":"VLOOKUP(A14,Students_Table[],6,FALSE)","v":false},3,3,null,3,3,3,3,3,2,1,3,3,3,3,3,3,3,3,3,null,3,2,null,3,null,null,3]
["Maddie Randall",{"$f":"VLOOKUP(A15,Students_Table[],6,FALSE)","v":false},3,3,null,3,3,3,3,3,3,null,null,null,2,3,3,3,3,3,3,null,null,1]
["Pattie Houston",{"$f":"VLOOKUP(A16,Students_Table[],6,FALSE)","v":true},3,null,null,3,3,3,3,3,null,3,3,3,2,3,3,3,3,3,3,null,null,3,2,3,3,3,3]
["Shawn Madison",{"$f":"VLOOKUP(A17,Students_Table[],6,FALSE)","v":false},2,null,null,2,2,null,null,3,3,1,2,1,null,3,3,2,2]
["Wayne Lindsay",{"$f":"VLOOKUP(A18,Students_Table[],6,FALSE)","v":true},3,3,null,3,3,3,3,3,3,1,3,3,1,3,3,3,3,3,null,null,null,3,2,3,null,null,1]

{"sheet":"Math","index":1,"n_rows":18,"n_cols":56,"rows_kept":18,"cut":false,"hidden":false,"merged":[[0,30,0,40],[0,2,0,11],[0,24,0,28],[0,18,0,23],[0,41,0,43]]}
[null,null,"1 - 10",null,null,null,null,null,null,null,null,null,null,null,null,null,null,null,"Short Beads",null,null,null,null,null,"Chains",null,null,null,null,null,"Golden Beads",null,null,null,null,null,null,null,null,null,null,"Stamp Game",null,null,null,null,null,null,null,{"$f":" IF(ISBLANK(#REF!), \"\",#REF!)","v":{"$error":"#REF!"}}]
[null,null,1,2,3,4,5,6,7,8,9,10,"Tracing","Writing","Step Board","Number Rod","Spindles","Counters & Cards","Intro","Addition","Subtraction","Teen Board","Ten Board","100 Board","Short 1 - 5","Short 6 -  9","Long 2, 3, 4","Long 5, 6, 7","Long 8, 9, 10"," Multiplication Box","Intro to Dec","Crisis of 9","Fetch (no numeral)","Numerals (cards)","Fetch (cards)","Birds Eye View","Static Addition (+)","Static Subtraction (-)","Exchange","Dynamic Addition","Static Mult","Static Addition","Dynamic Addition","Static Subtraction","Multiplication Chart","Addition Strip Board","Addition Chart","Fractions",null,"static Mult",null,null,null,null,{"$f":"#REF!","v":{"$error":"#REF!"}},{"$f":"#REF!","v":{"$error":"#REF!"}}]
[]
["Allison Rogers",{"$f":"VLOOKUP(A4,Students_Table[],6,FALSE)","v":false},3,3,3,3,3,3,3,3,3,3,3,3,3,3,3,3,3,3,2,3,1,null,3,null,null,null,null,null,1,1,1,null,null,null,null,null,null,null,null,null,null,null,null,null,null,null,null,{"$f":"IF(ISBLANK(#REF!),IF(ISBLANK(#REF!),\"\",\"P\"),\"M\")","v":"M"},{"$f":"IF(ISBLANK(#REF!),IF(ISBLANK(#REF!),\"\",\"P\"),\"M\")","v":"M"},{"$f":"IF(ISBLANK(#REF!),IF(ISBLANK(#REF!),\"\",\"P\"),\"M\")","v":"M"},{"$f":"IF(ISBLANK(#REF!),IF(ISBLANK(#REF!),\"\",\"P\"),\"M\")","v":"M"},{"$f":"IF(ISBLANK(#REF!),IF(ISBLANK(#REF!),\"\",\"P\"),\"M\")","v":"M"},{"$f":"IF(ISBLANK(#REF!),IF(ISBLANK(#REF!),\"\",\"P\"),\"M\")","v":"M"},{"$f":"IF(ISBLANK(#REF!),IF(ISBLANK(#REF!),\"\",\"P\"),\"M\")","v":"M"}]
["Andy Beckman",{"$f":"VLOOKUP(A5,Students_Table[],6,FALSE)","v":false},3,3,3,3,3,3,3,3,3,3,3,3,2,3,3,2,3,3,3,3,null,2,3,2,null,null,null,null,null,null,null,null,null,null,null,null,null,null,null,null,null,null,null,null,null,null,null,{"$f":"IF(ISBLANK(#REF!),IF(ISBLANK(#REF!),\"\",\"P\"),\"M\")","v":"M"},{"$f":"IF(ISBLANK(#REF!),IF(ISBLANK(#REF!),\"\",\"P\"),\"M\")","v":"M"},{"$f":"IF(ISBLANK(#REF!),IF(ISBLANK(#REF!),\"\",\"P\"),\"M\")","v":"M"},{"$f":"IF(ISBLANK(#REF!),IF(ISBLANK(#REF!),\"\",\"P\"),\"M\")","v":"M"},{"$f":"IF(ISBLANK(#REF!),IF(ISBLANK(#REF!),\"\",\"P\"),\"M\")","v":"M"},{"$f":"IF(ISBLANK(#REF!),IF(ISBLANK(#REF!),\"\",\"P\"),\"M\")","v":"M"},{"$f":"IF(ISBLANK(#REF!),IF(ISBLANK(#REF!),\"\",\"P\"),\"M\")","v":"M"}]
["Brad Clayton",{"$f":"VLOOKUP(A6,Students_Table[],6,FALSE)","v":false},3,3,3,3,3,3,3,3,3,3,3,3,3,3,3,3,3,3,3,3,3,3,3,3,3,3,1,2,3,3,3,3,3,3,3,2,3,3,null,3,null,null,null,3,1,3,null,{"$f":"IF(ISBLANK(#REF!),IF(ISBLANK(#REF!),\"\",\"P\"),\"M\")","v":"M"},{"$f":"IF(ISBLANK(#REF!),IF(ISBLANK(#REF!),\"\",\"P\"),\"M\")","v":"M"},{"$f":"IF(ISBLANK(#REF!),IF(ISBLANK(#REF!),\"\",\"P\"),\"M\")","v":"M"},{"$f":"IF(ISBLANK(#REF!),IF(ISBLANK(#REF!),\"\",\"P\"),\"M\")","v":"M"},{"$f":"IF(ISBLANK(#REF!),IF(ISBLANK(#REF!),\"\",\"P\"),\"M\")","v":"M"},{"$f":"IF(ISBLANK(#REF!),IF(ISBLANK(#REF!),\"\",\"P\"),\"M\")","v":"M"},{"$f":"IF(ISBLANK(#REF!),IF(ISBLANK(#REF!),\"\",\"P\"),\"M\")","v":"M"}]
["Carolyn Sinclair",{"$f":"VLOOKUP(A7,Students_Table[],6,FALSE)","v":false},3,3,3,3,3,3,3,3,3,3,3,3,null,3,3,3,3,3,null,3,3,3,3,3,3,2,null,null,3,3,3,3,3,3,2,null,null,null,null,null,null,null,null,null,null,null,null,{"$f":"IF(ISBLANK(#REF!),IF(ISBLANK(#REF!),\"\",\"P\"),\"M\")","v":"M"},{"$f":"IF(ISBLANK(#REF!),IF(ISBLANK(#REF!),\"\",\"P\"),\"M\")","v":"M"},{"$f":"IF(ISBLANK(#REF!),IF(ISBLANK(#REF!),\"\",\"P\"),\"M\")","v":"M"},{"$f":"IF(ISBLANK(#REF!),IF(ISBLANK(#REF!),\"\",\"P\"),\"M\")","v":"M"},{"$f":"IF(ISBLANK(#REF!),IF(ISBLANK(#REF!),\"\",\"P\"),\"M\")","v":"M"},{"$f":"IF(ISBLANK(#REF!),IF(ISBLANK(#REF!),\"\",\"P\"),\"M\")","v":"M"},{"$f":"IF(ISBLANK(#REF!),IF(ISBLANK(#REF!),\"\",\"P\"),\"M\")","v":"M"}]
["Charlie Newman",{"$f":"VLOOKUP(A8,Students_Table[],6,FALSE)","v":true},3,3,3,3,3,3,3,3,3,3,3,3,2,3,3,3,3,3,null,3,3,3,3,3,3,2,null,null,3,3,3,3,3,3,3,2,3,2,null,3,null,null,null,2,null,2,null,{"$f":"IF(ISBLANK(#REF!),IF(ISBLANK(#REF!),\"\",\"P\"),\"M\")","v":"M"},{"$f":"IF(ISBLANK(#REF!),IF(ISBLANK(#REF!),\"\",\"P\"),\"M\")","v":"M"},{"$f":"IF(ISBLANK(#REF!),IF(ISBLANK(#REF!),\"\",\"P\"),\"M\")","v":"M"},{"$f":"IF(ISBLANK(#REF!),IF(ISBLANK(#REF!),\"\",\"P\"),\"M\")","v":"M"},{"$f":"IF(ISBLANK(#REF!),IF(ISBLANK(#REF!),\"\",\"P\"),\"M\")","v":"M"},{"$f":"IF(ISBLANK(#REF!),IF(ISBLANK(#REF!),\"\",\"P\"),\"M\")","v":"M"},{"$f":"IF(ISBLANK(#REF!),IF(ISBLANK(#REF!),\"\",\"P\"),\"M\")","v":"M"}]
["Debbie Perry",{"$f":"VLOOKUP(A9,Students_Table[],6,FALSE)","v":false},3,3,3,3,3,3,3,3,3,3,3,3,3,3,3,3,3,3,null,3,null,2,null,null,null,null,null,null,3,3,3,3,3,3,2]
["Gina Alberts",{"$f":"VLOOKUP(A10,Students_Table[],6,FALSE)","v":false},3,3,3,3,3,3,3,2,2,2,3,2]
["Ian Emerson",{"$f":"VLOOKUP(A11,Students_Table[],6,FALSE)","v":false},3,3,3,3,3,3,3,3,3,3,3,3,3,3,3,3,3,3,3,3,3,2,3,2,2,null,null,null,3,2,2,1,1,2,null,null,null,null,null,null,null,null,null,null,null,null,null,{"$f":"IF(ISBLANK(#REF!),IF(ISBLANK(#REF!),\"\",\"P\"),\"M\")","v":"M"},{"$f":"IF(ISBLANK(#REF!),IF(ISBLANK(#REF!),\"\",\"P\"),\"M\")","v":"M"},{"$f":"IF(ISBLANK(#REF!),IF(ISBLANK(#REF!),\"\",\"P\"),\"M\")","v":"M"},{"$f":"IF(ISBLANK(#REF!),IF(ISBLANK(#REF!),\"\",\"P\"),\"M\")","v":"M"},{"$f":"IF(ISBLANK(#REF!),IF(ISBLANK(#REF!),\"\",\"P\"),\"M\")","v":"M"},{"$f":"IF(ISBLANK(#REF!),IF(ISBLANK(#REF!),\"\",\"P\"),\"M\")","v":"M"},{"$f":"IF(ISBLANK(#REF!),IF(ISBLANK(#REF!),\"\",\"P\"),\"M\")","v":"M"}]
["Katherine  Trent",{"$f":"VLOOKUP(A12,Students_Table[],6,FALSE)","v":false},3,3,3,3,3,3,3,3,3,3,3,3,3,3,3,null,3,3,null,3,2,3,3,3,3,2,null,null,3,3,3,3,3,3,2,null,null,null,null,null,null,null,null,null,null,null,null,{"$f":"IF(ISBLANK(#REF!),IF(ISBLANK(#REF!),\"\",\"P\"),\"M\")","v":"M"},{"$f":"IF(ISBLANK(#REF!),IF(ISBLANK(#REF!),\"\",\"P\"),\"M\")","v":"M"},{"$f":"IF(ISBLANK(#REF!),IF(ISBLANK(#REF!),\"\",\"P\"),\"M\")","v":"M"},{"$f":"IF(ISBLANK(#REF!),IF(ISBLANK(#REF!),\"\",\"P\"),\"M\")","v":"M"},{"$f":"IF(ISBLANK(#REF!),IF(ISBLANK(#REF!),\"\",\"P\"),\"M\")","v":"M"},{"$f":"IF(ISBLANK(#REF!),IF(ISBLANK(#REF!),\"\",\"P\"),\"M\")","v":"M"},{"$f":"IF(ISBLANK(#REF!),IF(ISBLANK(#REF!),\"\",\"P\"),\"M\")","v":"M"}]
["Kevin Abbott",{"$f":"VLOOKUP(A13,Students_Table[],6,FALSE)","v":false},3,3,3,3,3,3,3,3,3,3,3,3,3,3,3,3,3,3,null,3,null,null,3,3,2,null,null,null,3,3,3,3,2,3,null,null,null,null,null,null,null,null,null,null,null,null,null,{"$f":"IF(ISBLANK(#REF!),IF(ISBLANK(#REF!),\"\",\"P\"),\"M\")","v":"M"},{"$f":"IF(ISBLANK(#REF!),IF(ISBLANK(#REF!),\"\",\"P\"),\"M\")","v":"M"},{"$f":"IF(ISBLANK(#REF!),IF(ISBLANK(#REF!),\"\",\"P\"),\"M\")","v":"M"},{"$f":"IF(ISBLANK(#REF!),IF(ISBLANK(#REF!),\"\",\"P\"),\"M\")","v":"M"},{"$f":"IF(ISBLANK(#REF!),IF(ISBLANK(#REF!),\"\",\"P\"),\"M\")","v":"M"},{"$f":"IF(ISBLANK(#REF!),IF(ISBLANK(#REF!),\"\",\"P\"),\"M\")","v":"M"},{"$f":"IF(ISBLANK(#REF!),IF(ISBLANK(#REF!),\"\",\"P\"),\"M\")","v":"M"}]
["Kimberly Wilson",{"$f":"VLOOKUP(A14,Students_Table[],6,FALSE)","v":false},3,3,3,3,3,3,3,3,3,3,2,3,3,3,3,3,3,3,3,3,2,3,3,3,null,null,null,null,3,3,3,3,3,3,3,null,null,null,null,null,null,null,null,null,null,null,null,{"$f":"IF(ISBLANK(#REF!),IF(ISBLANK(#REF!),\"\",\"P\"),\"M\")","v":"M"},{"$f":"IF(ISBLANK(#REF!),IF(ISBLANK(#REF!),\"\",\"P\"),\"M\")","v":"M"},{"$f":"IF(ISBLANK(#REF!),IF(ISBLANK(#REF!),\"\",\"P\"),\"M\")","v":"M"},{"$f":"IF(ISBLANK(#REF!),IF(ISBLANK(#REF!),\"\",\"P\"),\"M\")","v":"M"},{"$f":"IF(ISBLANK(#REF!),IF(ISBLANK(#REF!),\"\",\"P\"),\"M\")","v":"M"},{"$f":"IF(ISBLANK(#REF!),IF(ISBLANK(#REF!),\"\",\"P\"),\"M\")","v":"M"},{"$f":"IF(ISBLANK(#REF!),IF(ISBLANK(#REF!),\"\",\"P\"),\"M\")","v":"M"}]
["Maddie Randall",{"$f":"VLOOKUP(A15,Students_Table[],6,FALSE)","v":false},3,3,3,3,3,3,3,3,3,3,2,2,2,2,1,3,3,3,3,3,null,null,null,null,null,null,null,null,null,null,null,null,null,null,null,null,null,null,null,null,null,null,null,null,null,null,null,{"$f":"IF(ISBLANK(#REF!),IF(ISBLANK(#REF!),\"\",\"P\"),\"M\")","v":"M"},{"$f":"IF(ISBLANK(#REF!),IF(ISBLANK(#REF!),\"\",\"P\"),\"M\")","v":"M"},{"$f":"IF(ISBLANK(#REF!),IF(ISBLANK(#REF!),\"\",\"P\"),\"M\")","v":"M"},{"$f":"IF(ISBLANK(#REF!),IF(ISBLANK(#REF!),\"\",\"P\"),\"M\")","v":"M"},{"$f":"IF(ISBLANK(#REF!),IF(ISBLANK(#REF!),\"\",\"P\"),\"M\")","v":"M"},{"$f":"IF(ISBLANK(#REF!),IF(ISBLANK(#REF!),\"\",\"P\"),\"M\")","v":"M"},{"$f":"IF(ISBLANK(#REF!),IF(ISBLANK(#REF!),\"\",\"P\"),\"M\")","v":"M"}]
["Pattie Houston",{"$f":"VLOOKUP(A16,Students_Table[],6,FALSE)","v":true},3,3,3,3,3,3,3,3,3,3,3,3,2,3,3,3,3,3,2,3,3,3,3,3,3,3,3,1,3,3,3,3,3,3,3,2,3,3,null,3,2,1,3,3,2,2,null,{"$f":"IF(ISBLANK(#REF!),IF(ISBLANK(#REF!),\"\",\"P\"),\"M\")","v":"M"},{"$f":"IF(ISBLANK(#REF!),IF(ISBLANK(#REF!),\"\",\"P\"),\"M\")","v":"M"},{"$f":"IF(ISBLANK(#REF!),IF(ISBLANK(#REF!),\"\",\"P\"),\"M\")","v":"M"},{"$f":"IF(ISBLANK(#REF!),IF(ISBLANK(#REF!),\"\",\"P\"),\"M\")","v":"M"},{"$f":"IF(ISBLANK(#REF!),IF(ISBLANK(#REF!),\"\",\"P\"),\"M\")","v":"M"},{"$f":"IF(ISBLANK(#REF!),IF(ISBLANK(#REF!),\"\",\"P\"),\"M\")","v":"M"},{"$f":"IF(ISBLANK(#REF!),IF(ISBLANK(#REF!),\"\",\"P\"),\"M\")","v":"M"}]
["Shawn Madison",{"$f":"VLOOKUP(A17,Students_Table[],6,FALSE)","v":false},3,3,3,3,3,3,3,3,3,3,2,3,2,null,null,2,3,null,null,2,null,null,null,null,null,null,null,null,null,null,null,null,null,null,null,null,null,null,null,null,null,null,null,null,null,null,null,{"$f":"IF(ISBLANK(#REF!),IF(ISBLANK(#REF!),\"\",\"P\"),\"M\")","v":"M"},{"$f":"IF(ISBLANK(#REF!),IF(ISBLANK(#REF!),\"\",\"P\"),\"M\")","v":"M"},{"$f":"IF(ISBLANK(#REF!),IF(ISBLANK(#REF!),\"\",\"P\"),\"M\")","v":"M"},{"$f":"IF(ISBLANK(#REF!),IF(ISBLANK(#REF!),\"\",\"P\"),\"M\")","v":"M"},{"$f":"IF(ISBLANK(#REF!),IF(ISBLANK(#REF!),\"\",\"P\"),\"M\")","v":"M"},{"$f":"IF(ISBLANK(#REF!),IF(ISBLANK(#REF!),\"\",\"P\"),\"M\")","v":"M"},{"$f":"IF(ISBLANK(#REF!),IF(ISBLANK(#REF!),\"\",\"P\"),\"M\")","v":"M"}]
["Wayne Lindsay",{"$f":"VLOOKUP(A18,Students_Table[],6,FALSE)","v":true},3,3,3,3,3,3,3,3,3,3,3,3,3,3,3,3,3,3,null,3,null,3,3,3,3,3,3,1,3,3,3,3,3,3,3,2,3,null,null,3,3,null,3,2,null,1,null,{"$f":"IF(ISBLANK(#REF!),IF(ISBLANK(#REF!),\"\",\"P\"),\"M\")","v":"M"},{"$f":"IF(ISBLANK(#REF!),IF(ISBLANK(#REF!),\"\",\"P\"),\"M\")","v":"M"},{"$f":"IF(ISBLANK(#REF!),IF(ISBLANK(#REF!),\"\",\"P\"),\"M\")","v":"M"},{"$f":"IF(ISBLANK(#REF!),IF(ISBLANK(#REF!),\"\",\"P\"),\"M\")","v":"M"},{"$f":"IF(ISBLANK(#REF!),IF(ISBLANK(#REF!),\"\",\"P\"),\"M\")","v":"M"},{"$f":"IF(ISBLANK(#REF!),IF(ISBLANK(#REF!),\"\",\"P\"),\"M\")","v":"M"},{"$f":"IF(ISBLANK(#REF!),IF(ISBLANK(#REF!),\"\",\"P\"),\"M\")","v":"M"}]

{"sheet":"Students","index":2,"n_rows":18,"n_cols":6,"rows_kept":18,"cut":false,"hidden":false,"merged":[]}
[null,"School year starts:",2007]
[]
["Name","First Name","Last Name","DOB","Age","IsKinderGardener"]
[{"$f":"Students_Table[[#This Row],[First Name]]&\" \"&Students_Table[[#This Row],[Last Name]]","v":"Allison Rogers"},"Allison","Rogers","2003-11-19",{"$f":"(TODAY()-[DOB])/365","v":4.6438356164383565},{"$f":"((DATEVALUE(\"9/1/\"&Students_SchoolYearStarts)-[DOB])/365>=5)","v":false}]
[{"$f":"Students_Table[[#This Row],[First Name]]&\" \"&Students_Table[[#This Row],[Last Name]]","v":"Andy Beckman"},"Andy","Beckman","2004-01-30",{"$f":"(TODAY()-[DOB])/365","v":4.4465753424657537},{"$f":"((DATEVALUE(\"9/1/\"&Students_SchoolYearStarts)-[DOB])/365>=5)","v":false}]
[{"$f":"Students_Table[[#This Row],[First Name]]&\" \"&Students_Table[[#This Row],[Last Name]]","v":"Brad Clayton"},"Brad","Clayton","2004-08-09",{"$f":"(TODAY()-[DOB])/365","v":3.9205479452054797},{"$f":"((DATEVALUE(\"9/1/\"&Students_SchoolYearStarts)-[DOB])/365>=5)","v":false}]
[{"$f":"Students_Table[[#This Row],[First Name]]&\" \"&Students_Table[[#This Row],[Last Name]]","v":"Carolyn Sinclair"},"Carolyn","Sinclair","2003-03-17",{"$f":"(TODAY()-[DOB])/365","v":5.3205479452054796},{"$f":"((DATEVALUE(\"9/1/\"&Students_SchoolYearStarts)-[DOB])/365>=5)","v":false}]
[{"$f":"Students_Table[[#This Row],[First Name]]&\" \"&Students_Table[[#This Row],[Last Name]]","v":"Charlie Newman"},"Charlie","Newman","2002-06-27",{"$f":"(TODAY()-[DOB])/365","v":6.0410958904109586},{"$f":"((DATEVALUE(\"9/1/\"&Students_SchoolYearStarts)-[DOB])/365>=5)","v":true}]
[{"$f":"Students_Table[[#This Row],[First Name]]&\" \"&Students_Table[[#This Row],[Last Name]]","v":"Debbie Perry"},"Debbie","Perry","2003-08-18",{"$f":"(TODAY()-[DOB])/365","v":4.8986301369863012},{"$f":"((DATEVALUE(\"9/1/\"&Students_SchoolYearStarts)-[DOB])/365>=5)","v":false}]
[{"$f":"Students_Table[[#This Row],[First Name]]&\" \"&Students_Table[[#This Row],[Last Name]]","v":"Gina Alberts"},"Gina","Alberts","2002-12-17",{"$f":"(TODAY()-[DOB])/365","v":5.5671232876712331},{"$f":"((DATEVALUE(\"9/1/\"&Students_SchoolYearStarts)-[DOB])/365>=5)","v":false}]
[{"$f":"Students_Table[[#This Row],[First Name]]&\" \"&Students_Table[[#This Row],[Last Name]]","v":"Ian Emerson"},"Ian","Emerson","2005-01-20",{"$f":"(TODAY()-[DOB])/365","v":3.4712328767123286},{"$f":"((DATEVALUE(\"9/1/\"&Students_SchoolYearStarts)-[DOB])/365>=5)","v":false}]
[{"$f":"Students_Table[[#This Row],[First Name]]&\" \"&Students_Table[[#This Row],[Last Name]]","v":"Katherine  Trent"},"Katherine ","Trent","2003-03-25",{"$f":"(TODAY()-[DOB])/365","v":5.2986301369863016},{"$f":"((DATEVALUE(\"9/1/\"&Students_SchoolYearStarts)-[DOB])/365>=5)","v":false}]
[{"$f":"Students_Table[[#This Row],[First Name]]&\" \"&Students_Table[[#This Row],[Last Name]]","v":"Kevin Abbott"},"Kevin","Abbott","2003-01-19",{"$f":"(TODAY()-[DOB])/365","v":5.4767123287671229},{"$f":"((DATEVALUE(\"9/1/\"&Students_SchoolYearStarts)-[DOB])/365>=5)","v":false}]
[{"$f":"Students_Table[[#This Row],[First Name]]&\" \"&Students_Table[[#This Row],[Last Name]]","v":"Kimberly Wilson"},"Kimberly","Wilson","2004-01-17",{"$f":"(TODAY()-[DOB])/365","v":4.4821917808219176},{"$f":"((DATEVALUE(\"9/1/\"&Students_SchoolYearStarts)-[DOB])/365>=5)","v":false}]
[{"$f":"Students_Table[[#This Row],[First Name]]&\" \"&Students_Table[[#This Row],[Last Name]]","v":"Maddie Randall"},"Maddie","Randall","2004-08-22",{"$f":"(TODAY()-[DOB])/365","v":3.8849315068493149},{"$f":"((DATEVALUE(\"9/1/\"&Students_SchoolYearStarts)-[DOB])/365>=5)","v":false}]
[{"$f":"Students_Table[[#This Row],[First Name]]&\" \"&Students_Table[[#This Row],[Last Name]]","v":"Pattie Houston"},"Pattie","Houston","2002-08-17",{"$f":"(TODAY()-[DOB])/365","v":5.9013698630136986},{"$f":"((DATEVALUE(\"9/1/\"&Students_SchoolYearStarts)-[DOB])/365>=5)","v":true}]
[{"$f":"Students_Table[[#This Row],[First Name]]&\" \"&Students_Table[[#This Row],[Last Name]]","v":"Shawn Madison"},"Shawn","Madison","2003-09-30",{"$f":"(TODAY()-[DOB])/365","v":4.7808219178082192},{"$f":"((DATEVALUE(\"9/1/\"&Students_SchoolYearStarts)-[DOB])/365>=5)","v":false}]
[{"$f":"Students_Table[[#This Row],[First Name]]&\" \"&Students_Table[[#This Row],[Last Name]]","v":"Wayne Lindsay"},"Wayne","Lindsay","2002-07-24",{"$f":"(TODAY()-[DOB])/365","v":5.9671232876712326},{"$f":"((DATEVALUE(\"9/1/\"&Students_SchoolYearStarts)-[DOB])/365>=5)","v":true}]

{"sheet":"ReportInput","index":3,"n_rows":19,"n_cols":6,"rows_kept":19,"cut":false,"hidden":false,"merged":[]}
["Report date:","2008-05-04"]
["Select student for report:","Wayne Lindsay"]
[]
[null,null,null,"Name","Reporting Teacher","Comment"]
[null,null,null,"Allison Rogers","Mrs. Khen","Lorem ipsum dolor sit amet, consectetur adipisicing elit, sed do eiusmod tempor incididunt ut labore et dolore magna aliqua. Ut enim ad minim veniam, quis nostrud exercitation ullamco laboris nisi ut aliquip ex ea commodo consequat. Duis aute irure dolor in reprehenderit in voluptate velit esse cillum dolore eu fugiat nulla pariatur. Excepteur sint occaecat cupidatat non proident, sunt in culpa qui officia deserunt mollit anim id est laborum."]
[null,null,null,"Andy Beckman","Mrs. Khen","Integer pharetra, diam ut tempus fermentum, erat ante consectetuer dui, non pretium orci eros vel nunc. In auctor sollicitudin erat. Praesent facilisis neque id leo. Duis nisi. Sed interdum justo a augue. Mauris convallis, felis in elementum aliquet, enim turpis commodo nisl, eget viverra nibh purus nec magna. Morbi volutpat. Aenean nec orci et quam consectetuer eleifend. Sed in diam tempus turpis consectetuer sollicitudin. In in orci. Nullam vitae nulla non sem sollicitudin aliquam. Aenean imperdiet congue augue. Aliquam erat volutpat."]
[null,null,null,"Brad Clayton","Mrs. Khen","Pellentesque adipiscing. Aliquam nec mi. Phasellus ultricies. In laoreet nibh id est. Etiam a tortor. Phasellus a lacus vel tortor posuere pellentesque. Pellentesque tortor. Praesent eu nisi ac quam sodales semper. Integer gravida. Sed urna urna, rhoncus quis, fringilla id, pulvinar at, mauris."]
[null,null,null,"Carolyn Sinclair","Mrs. Khen","Nunc ac mi. Pellentesque magna. Sed tellus. Lorem ipsum dolor sit amet, consectetuer adipiscing elit. Proin porta venenatis velit. Donec molestie, sem quis lacinia sollicitudin, felis est pharetra quam, in aliquam est libero non lorem. Curabitur lobortis libero vel eros. Suspendisse a purus id nulla hendrerit pellentesque. Sed et ante non mauris sodales fermentum. Pellentesque leo nisl, posuere quis, sagittis ac, tincidunt pulvinar, enim. Suspendisse sem quam, accumsan non, pharetra ac, varius vel, nisl. Fusce nec est quis erat pretium molestie. Vestibulum condimentum nulla ut tortor. Sed molestie magna at tellus. Vivamus varius lectus in sapien."]
[null,null,null,"Charlie Newman","Mrs. Khen","Integer vitae nisi vel dolor placerat tincidunt. Cras pellentesque, libero et faucibus rhoncus, lectus risus fermentum augue, a faucibus nisi erat in lectus. Pellentesque habitant morbi tristique senectus et netus et malesuada fames ac turpis egestas. Suspendisse tellus. Nullam mollis pulvinar lacus. Integer ultricies faucibus nisl. Etiam condimentum urna eget ante iaculis placerat. Donec sit amet neque. Duis metus massa, aliquam non, molestie gravida, lobortis vel, est. Donec mattis augue at leo. Ut consectetuer dui at pede. Mauris id libero. In hac habitasse platea dictumst. Aenean varius tellus ac mi."]
[null,null,null,"Debbie Perry","Mrs. Khen","Nullam risus dui, interdum et, fringilla sit amet, feugiat quis, risus. Cum sociis natoque penatibus et magnis dis parturient montes, nascetur ridiculus mus. Sed tristique faucibus lacus. Donec magna mi, suscipit at, consectetuer eget, fermentum vitae, odio. Ut aliquet odio ut neque. Aliquam erat volutpat. Donec pulvinar massa id lacus. Cras felis. Sed eu diam et tellus aliquet condimentum. Vestibulum ante ipsum primis in faucibus orci luctus et ultrices posuere cubilia Curae; Curabitur egestas velit eget justo tempor pharetra. Proin cursus aliquet erat. In et quam. Aliquam dui. Mauris sagittis, orci vitae gravida tristique, massa libero suscipit justo, eget tempus mi purus eget diam. Aenean in felis."]
[null,null,null,"Gina Alberts","Mrs. Khen","Pellentesque mattis magna at nunc. Ut vitae augue nec lectus tempor sollicitudin. Sed dictum justo in leo. Maecenas dictum pulvinar tortor. Vestibulum ante ipsum primis in faucibus orci luctus et ultrices posuere cubilia Curae; Donec sem lectus, mollis ut, sagittis et, sagittis nec, ligula. Integer ut mi. In ut purus ut sapien bibendum molestie. Nulla interdum condimentum magna. Phasellus mattis porta lectus. Pellentesque eget enim vel massa pharetra scelerisque. Aliquam libero ipsum, sollicitudin at, fringilla eu, venenatis eu, eros. Duis a lorem id ipsum viverra lacinia. Aliquam tincidunt egestas tortor. Nunc malesuada justo semper velit."]
[null,null,null,"Ian Emerson","Mrs. Khen","Ut sed metus. Morbi in nunc a pede vehicula blandit. Aliquam hendrerit urna in augue. Nunc commodo dapibus ante. In et quam ut diam lobortis volutpat. Nullam fermentum lobortis augue. Aliquam rhoncus vestibulum sem. Donec dignissim. Praesent pellentesque. Aenean dapibus. Mauris scelerisque blandit arcu. Etiam dolor. Mauris sollicitudin bibendum est. Cras eros mi, fermentum non, eleifend et, dignissim in, enim. Cum sociis natoque penatibus et magnis dis parturient montes, nascetur ridiculus mus. Nulla faucibus ipsum dapibus odio. Maecenas nec metus eget lectus tristique pretium. Fusce tempor accumsan tellus. Phasellus pharetra, nulla non bibendum pulvinar, eros nisi placerat sapien, ac sollicitudin metus velit eget metus."]
[null,null,null,"Katherine  Trent","Mrs. Khen","Quisque a dui. Nam sed est. Sed ornare eleifend sapien. Praesent arcu quam, rhoncus non, ultrices et, imperdiet in, nisl. Pellentesque at est. Duis et dui. Mauris viverra molestie purus. Duis fringilla venenatis arcu. Maecenas ac erat quis nisl vestibulum porttitor. Suspendisse id mauris. Suspendisse faucibus est vel mi. Quisque ac elit. Pellentesque tortor diam, interdum ut, sollicitudin placerat, pulvinar vel, risus. Donec velit quam, sagittis nec, fermentum non, rutrum sit amet, massa. Pellentesque habitant morbi tristique senectus et netus et malesuada fames ac turpis egestas. In ut velit."]
[null,null,null,"Kevin Abbott","Mrs. Khen","Nam tempus, metus sed porttitor facilisis, tellus massa pretium est, et placerat lorem erat quis nibh. Aenean nisi risus, mattis vel, pulvinar vitae, tincidunt et, nunc. Etiam in arcu. Sed scelerisque faucibus diam. Praesent gravida posuere metus. Donec vitae leo. Nulla odio nunc, pharetra a, vestibulum vel, condimentum id, risus. In vestibulum, libero et tristique fringilla, turpis dolor lacinia pede, sit amet volutpat magna odio mollis dolor. Duis condimentum neque ac tellus. Donec tincidunt odio ac arcu. Fusce commodo nulla a nunc. Curabitur lacus. Cras non dui ut urna gravida tristique. In feugiat ipsum ac ante. Vestibulum vel mi in ipsum lacinia pretium. Ut arcu nisl, pretium sed, aliquet viverra, convallis eget, lorem. Vivamus viverra risus in risus."]
[null,null,null,"Kimberly Wilson","Mrs. Khen","Proin in lacus. Pellentesque sed augue ut urna facilisis bibendum. Curabitur sapien dolor, venenatis sed, accumsan in, gravida sed, quam. Nam magna ipsum, tristique eu, semper non, ultricies nec, velit. Duis volutpat. Curabitur suscipit. Sed dignissim diam non dolor. Duis congue, mauris sed sodales sodales, nisi arcu ullamcorper lorem, sed semper sapien dui nec erat. Mauris nunc odio, hendrerit sed, viverra in, condimentum eget, sapien. Aliquam mi dolor, placerat a, dictum et, interdum vitae, leo. Vivamus vitae risus. Vivamus fringilla justo quis arcu. Curabitur ullamcorper, libero et aliquet condimentum, risus lacus imperdiet massa, eu faucibus diam urna vel purus. Fusce ut nisl. In varius erat lacinia diam."]
[null,null,null,"Maddie Randall","Mrs. Khen","Pellentesque nisi lacus, tempus vel, gravida sit amet, blandit a, ante. Fusce et massa quis mi lacinia euismod. Nam lorem nisl, tempor eu, pellentesque vitae, eleifend at, massa. Quisque justo dui, tincidunt a, rutrum in, lobortis in, nunc. Quisque cursus interdum pede. Lorem ipsum dolor sit amet, consectetuer adipiscing elit. Donec urna. Maecenas gravida varius velit. Phasellus aliquam interdum neque. Curabitur id leo. Morbi iaculis turpis in lectus. Aenean id nisi id nunc convallis laoreet. Ut in tellus. Nunc pretium placerat tellus. Ut tellus eros, mattis et, dictum pellentesque, mattis sed, leo."]
[null,null,null,"Pattie Houston","Mrs. Khen","Phasellus commodo augue id eros. Nam consequat ultrices orci. In felis. Quisque purus lectus, lobortis non, cursus nec, suscipit nec, massa. Duis neque. Praesent metus mi, porta id, fringilla eget, dictum ut, leo. Nulla bibendum imperdiet nibh. Maecenas nisl arcu, iaculis eu, auctor eu, varius sed, mi. Vivamus porttitor sollicitudin felis. Proin tempor malesuada massa. Fusce ligula tellus, porttitor quis, porta eu, convallis nec, sapien. Sed tempor consequat tellus. Donec velit neque, faucibus sit amet, posuere sed, vehicula non, purus. Nunc vel nisi. Curabitur sed dolor et erat congue tincidunt. Fusce sem enim, ornare quis, facilisis eu, elementum id, metus. Duis consequat elit ut neque. Vivamus sit amet lacus a est sollicitudin aliquet. Nullam lacinia dapibus erat."]
[null,null,null,"Shawn Madison","Mrs. Khen","Aenean fermentum gravida leo. Nullam rutrum, libero vitae pretium posuere, velit erat consequat quam, sit amet pretium massa purus nec orci. In hac habitasse platea dictumst. Etiam in quam quis tellus vestibulum pharetra. Mauris et velit. Donec tincidunt imperdiet risus. Ut commodo. Pellentesque interdum. Curabitur at lorem in sapien pretium egestas. In sapien augue, porttitor non, dignissim quis, vehicula at, mauris. Curabitur scelerisque tincidunt enim. Proin ac nisl. Mauris blandit. Praesent nisi justo, tincidunt id, luctus quis, vehicula vitae, pede. Mauris sem leo, molestie eu, consectetuer sit amet, fringilla eget, lacus. Cras sapien."]
[null,null,null,"Wayne Lindsay","Mrs. Khen","In non eros. Aliquam mattis commodo sem. Morbi vitae lorem blandit eros volutpat tincidunt. Aliquam scelerisque ligula in nisi. Etiam bibendum, arcu nec suscipit dignissim, arcu nunc pulvinar risus, at ornare tortor felis in orci. Etiam justo. Praesent nisl dolor, vehicula in, facilisis et, molestie eu, sapien. Morbi neque. In dictum. Vestibulum pretium massa nec urna. Pellentesque sagittis. Fusce nec turpis eget enim venenatis gravida. Aliquam vitae quam at tellus vestibulum congue."]

{"sheet":"Report","index":4,"n_rows":37,"n_cols":11,"rows_kept":37,"cut":false,"hidden":false,"merged":[[36,2,44,10],[32,8,32,9],[32,0,32,1],[30,8,30,9],[33,0,33,1],[33,4,33,5],[31,8,31,9],[30,0,30,1],[30,4,30,5],[34,0,34,1],[31,0,31,1],[31,4,31,5],[27,0,27,1],[27,4,27,5],[28,0,28,1],[28,4,28,5],[29,8,29,9],[29,0,29,1],[29,4,29,5],[28,8,28,9],[25,0,25,1],[25,4,25,5],[25,8,25,9],[26,0,26,1],[26,4,26,5],[26,8,26,9],[23,0,23,1],[23,4,23,5],[23,8,23,9],[24,0,24,1],[24,4,24,5],[24,8,24,9],[21,0,21,1],[21,4,21,5],[21,8,21,9],[22,0,22,1],[22,4,22,5],[22,8,22,9],[20,0,20,1],[20,4,20,5],[20,8,20,9],[14,0,14,1],[14,4,14,5],[14,8,14,9],[15,0,15,1],[15,4,15,5],[15,8,15,9],[18,4,18,5],[18,8,18,9],[19,0,19,1],[19,4,19,5],[19,8,19,9],[13,8,13,9],[9,0,9,1],[9,4,9,5],[9,8,9,9],[10,0,10,1],[10,4,10,5],[10,8,10,9],[11,4,11,5],[11,8,11,9],[12,0,12,1],[12,4,12,5],[12,8,12,9],[13,0,13,1],[13,4,13,5],[6,4,6,5],[6,8,6,9],[0,0,0,10],[1,0,1,10],[3,1,3,2],[3,5,3,6],[3,9,3,10],[7,0,7,1],[7,4,7,5],[7,8,7,9],[8,0,8,1],[8,4,8,5],[8,8,8,9]]}
["ACME Montessori School"]
["Parent/Teacher Conference Report"]
[]
["Child: ",{"$f":"ReportIn_StudentName","v":"Wayne Lindsay"},null,null,"Teacher:  ",{"$f":"VLOOKUP(Report_StudentName,ReportComments_Table[],2,FALSE)","v":"Mrs. Khen"},null,null,"Date:  ",{"$f":"ReportIn_Date","v":"2008-05-04"}]
[]
["Sensorial"]
["Knobbed Cylinders",null,{"$f":"VLOOKUP(VLOOKUP(Report_StudentName,Sensorial_Range,ROW(C3),FALSE),Aux_Grades,2,FALSE)","v":"Mastered"},null,"Geometric Cabinet",null,null,null,"Sound Cylinders",null,{"$f":"VLOOKUP(VLOOKUP(Report_StudentName,Sensorial_Range,ROW(K15),FALSE),Aux_Grades,2,FALSE)","v":"Introduced"}]
["Pink Tower",null,{"$f":"VLOOKUP(VLOOKUP(Report_StudentName,Sensorial_Range,ROW(C6),FALSE),Aux_Grades,2,FALSE)","v":"Mastered"},null,"Constructive Triangles",null,null,null,"Fabric Matching"]
["Brown Stair",null,{"$f":"VLOOKUP(VLOOKUP(Report_StudentName,Sensorial_Range,ROW(C7),FALSE),Aux_Grades,2,FALSE)","v":"Mastered"},null,"Triangle",null,{"$f":"VLOOKUP(VLOOKUP(Report_StudentName,Sensorial_Range,ROW(G26),FALSE),Aux_Grades,2,FALSE)","v":"Mastered"},null,"Mystery Bag",null,{"$f":"VLOOKUP(VLOOKUP(Report_StudentName,Sensorial_Range,ROW(K29),FALSE),Aux_Grades,2,FALSE)","v":"Introduced"}]
["Pink & Brown",null,{"$f":"VLOOKUP(VLOOKUP(Report_StudentName,Sensorial_Range,ROW(C8),FALSE),Aux_Grades,2,FALSE)","v":"Mastered"},null,"Rectangle",null,{"$f":"VLOOKUP(VLOOKUP(Report_StudentName,Sensorial_Range,ROW(G27),FALSE),Aux_Grades,2,FALSE)","v":""}]
["Red Rods",null,{"$f":"VLOOKUP(VLOOKUP(Report_StudentName,Sensorial_Range,ROW(C9),FALSE),Aux_Grades,2,FALSE)","v":"Mastered"},null,"Large Hexagon",null,{"$f":"VLOOKUP(VLOOKUP(Report_StudentName,Sensorial_Range,ROW(G28),FALSE),Aux_Grades,2,FALSE)","v":""},null,"Binomial Cube",null,{"$f":"VLOOKUP(VLOOKUP(Report_StudentName,Sensorial_Range,ROW(K13),FALSE),Aux_Grades,2,FALSE)","v":"Mastered"}]
["Knobless Cylinders",null,null,null,"Small Hexagon",null,null,null,"Trinomial Cube",null,{"$f":"VLOOKUP(VLOOKUP(Report_StudentName,Sensorial_Range,ROW(K14),FALSE),Aux_Grades,2,FALSE)","v":"Mastered"}]
["Yellow",null,{"$f":"VLOOKUP(VLOOKUP(Report_StudentName,Sensorial_Range,ROW(C16),FALSE),Aux_Grades,2,FALSE)","v":"Mastered"},null,"Blue Triangles"]
["Red",null,{"$f":"VLOOKUP(VLOOKUP(Report_StudentName,Sensorial_Range,ROW(C17),FALSE),Aux_Grades,2,FALSE)","v":"Mastered"},null,null,null,null,null,"Smelling Bottles"]
["Green",null,{"$f":"VLOOKUP(VLOOKUP(Report_StudentName,Sensorial_Range,ROW(C18),FALSE),Aux_Grades,2,FALSE)","v":"Mastered"},null,"Color Box II",null,{"$f":"VLOOKUP(VLOOKUP(Report_StudentName,Sensorial_Range,ROW(G10),FALSE),Aux_Grades,2,FALSE)","v":"Mastered"},null,"Sandpaper Tablets"]
["Blue",null,{"$f":"VLOOKUP(VLOOKUP(Report_StudentName,Sensorial_Range,ROW(C19),FALSE),Aux_Grades,2,FALSE)","v":"Mastered"},null,"Color Box III",null,{"$f":"VLOOKUP(VLOOKUP(Report_StudentName,Sensorial_Range,ROW(G12),FALSE),Aux_Grades,2,FALSE)","v":"Introduced"},null,"Baric Tablets"]
[]
["Math"]
["Number Concepts",null,null,null,"Golden Beads ",null,null,null,"Stamp Game"]
["1 - 5",null,{"$f":"VLOOKUP(Aux_For_1_5,Aux_Grades,2,FALSE)","v":"Mastered"},null,"Intro to Decimal System",null,{"$f":"VLOOKUP(VLOOKUP(Report_StudentName,Math_Range,ROW(G31),FALSE),Aux_Grades,2,FALSE)","v":"Mastered"},null,"Static Addition",null,{"$f":"VLOOKUP(VLOOKUP(Report_StudentName,Math_Range,ROW(K42),FALSE),Aux_Grades,2,FALSE)","v":"Mastered"}]
["6 - 10",null,{"$f":"VLOOKUP(Aux_For_6_10,Aux_Grades,2,FALSE)","v":"Mastered"},null,"Crisis of Nine",null,{"$f":"VLOOKUP(VLOOKUP(Report_StudentName,Math_Range,ROW(G32),FALSE),Aux_Grades,2,FALSE)","v":"Mastered"},null,"Static Multiplication"]
["Writing",null,{"$f":"VLOOKUP(VLOOKUP(Report_StudentName,Math_Range,ROW(C14),FALSE),Aux_Grades,2,FALSE)","v":"Mastered"},null,"Fetch",null,{"$f":"VLOOKUP(VLOOKUP(Report_StudentName,Math_Range,ROW(G33),FALSE),Aux_Grades,2,FALSE)","v":"Mastered"},null,"Static Subtraction",null,{"$f":"VLOOKUP(VLOOKUP(Report_StudentName,Math_Range,ROW(K44),FALSE),Aux_Grades,2,FALSE)","v":""}]
["Number Rods",null,{"$f":"VLOOKUP(VLOOKUP(Report_StudentName,Math_Range,ROW(C16),FALSE),Aux_Grades,2,FALSE)","v":"Mastered"},null,"Bird's eye view",null,{"$f":"VLOOKUP(VLOOKUP(Report_StudentName,Math_Range,ROW(G36),FALSE),Aux_Grades,2,FALSE)","v":"Mastered"},null,"Static Division"]
["Spindle Box",null,{"$f":"VLOOKUP(VLOOKUP(Report_StudentName,Math_Range,ROW(C17),FALSE),Aux_Grades,2,FALSE)","v":"Mastered"},null,"Static Addition",null,{"$f":"VLOOKUP(VLOOKUP(Report_StudentName,Math_Range,ROW(G37),FALSE),Aux_Grades,2,FALSE)","v":"Mastered"},null,"Dynamic Addition",null,{"$f":"VLOOKUP(VLOOKUP(Report_StudentName,Math_Range,ROW(K43),FALSE),Aux_Grades,2,FALSE)","v":"Mastered"}]
["Card and Counters",null,{"$f":"VLOOKUP(VLOOKUP(Report_StudentName,Math_Range,ROW(C18),FALSE),Aux_Grades,2,FALSE)","v":"Mastered"},null,"Static Multiplication",null,{"$f":"VLOOKUP(VLOOKUP(Report_StudentName,Math_Range,ROW(G41),FALSE),Aux_Grades,2,FALSE)","v":""},null,"Dynamic Multiplication"]
["Short Beads",null,null,null,"Static Subtraction",null,{"$f":"VLOOKUP(VLOOKUP(Report_StudentName,Math_Range,ROW(G38),FALSE),Aux_Grades,2,FALSE)","v":"Working"},null,"Dynamic Subtraction"]
["Introduction",null,{"$f":"VLOOKUP(VLOOKUP(Report_StudentName,Math_Range,ROW(C19),FALSE),Aux_Grades,2,FALSE)","v":"Mastered"},null,"Static Division",null,null,null,"Dynamic Division"]
["Addition",null,"Mastered",null,"Exchange",null,{"$f":"VLOOKUP(VLOOKUP(Report_StudentName,Math_Range,ROW(G39),FALSE),Aux_Grades,2,FALSE)","v":"Mastered"}]
["Subtraction",null,"",null,"Dynamic Addition",null,{"$f":"VLOOKUP(VLOOKUP(Report_StudentName,Math_Range,ROW(G40),FALSE),Aux_Grades,2,FALSE)","v":""},null,"Multiplication Box",null,{"$f":"VLOOKUP(VLOOKUP(Report_StudentName,Math_Range,ROW(K30),FALSE),Aux_Grades,2,FALSE)","v":"Introduced"}]
["Teen Board",null,"Mastered",null,"Dynamic Multiplication",null,null,null,"Addition Strip Board",null,{"$f":"VLOOKUP(VLOOKUP(Report_StudentName,Math_Range,ROW(K46),FALSE),Aux_Grades,2,FALSE)","v":"Working"}]
["Ten Board",null,"",null,"Dynamic Subtraction",null,null,null,"Addition Charts ",null,{"$f":"VLOOKUP(VLOOKUP(Report_StudentName,Math_Range,ROW(K47),FALSE),Aux_Grades,2,FALSE)","v":""}]
["100 Board",null,"Mastered",null,"Dynamic Division",null,null,null,"Fractions",null,{"$f":"VLOOKUP(VLOOKUP(Report_StudentName,Math_Range,ROW(K48),FALSE),Aux_Grades,2,FALSE)","v":"Introduced"}]
["Short Chains",null,{"$f":"VLOOKUP(Aux_For_Short_Chains,Aux_Grades,2,FALSE)","v":"Mastered"},null,null,null,null,null,"Short Bead Frame"]
["Long Chains",null,{"$f":"VLOOKUP(Aux_For_Long_Chains,Aux_Grades,2,FALSE)","v":"Mastered"},null,"Step board"]
[]
[]
["Comments:",null,{"$f":"VLOOKUP(Report_StudentName,ReportComments_Table[],3,FALSE)","v":"In non eros. Aliquam mattis commodo sem. Morbi vitae lorem blandit eros volutpat tincidunt. Aliquam scelerisque ligula in nisi. Etiam bibendum, arcu nec suscipit dignissim, arcu nunc pulvinar risus, at ornare tortor felis in orci. Etiam justo. Praesent nisl dolor, vehicula in, facilisis et, molestie eu, sapien. Morbi neque. In dictum. Vestibulum pretium massa nec urna. Pellentesque sagittis. Fusce nec turpis eget enim venenatis gravida. Aliquam vitae quam at tellus vestibulum congue."}]

{"sheet":"AUX","index":5,"n_rows":7,"n_cols":8,"rows_kept":7,"cut":false,"hidden":false,"merged":[]}
["Tables",null,null,null,null,"Calculations"]
[]
["Grades",null,null,null,null,"For 1-5:",{"$f":"(VLOOKUP(Report_StudentName,Math_Range,3,FALSE)+VLOOKUP(Report_StudentName,Math_Range,4,FALSE)+VLOOKUP(Report_StudentName,Math_Range,5,FALSE)+VLOOKUP(Report_StudentName,Math_Range,6,FALSE)+VLOOKUP(Report_StudentName,Math_Range,7,FALSE))/5","v":3},{"$f":"IF(G3=0,0,IF(G3<2,1,IF(G3<3,2,3)))","v":3}]
[0,"",null,null,null,"For 6-10:",{"$f":"(VLOOKUP(Report_StudentName,Math_Range,8,FALSE)+VLOOKUP(Report_StudentName,Math_Range,9,FALSE)+VLOOKUP(Report_StudentName,Math_Range,10,FALSE)+VLOOKUP(Report_StudentName,Math_Range,11,FALSE)+VLOOKUP(Report_StudentName,Math_Range,12,FALSE))/5","v":3},{"$f":"IF(G4=0,0,IF(G4<2,1,IF(G4<3,2,3)))","v":3}]
[1,"Introduced",null,null,null,"For Short Chains:",{"$f":"(VLOOKUP(Report_StudentName,Math_Range,25,FALSE)+VLOOKUP(Report_StudentName,Math_Range,26,FALSE))/2","v":3},{"$f":"IF(G5=0,0,IF(G5<2,1,IF(G5<3,2,3)))","v":3}]
[2,"Working",null,null,null,"For Long Chains:",{"$f":"(VLOOKUP(Report_StudentName,Math_Range,27,FALSE)+VLOOKUP(Report_StudentName,Math_Range,28,FALSE)+VLOOKUP(Report_StudentName,Math_Range,29,FALSE))/3","v":3},{"$f":"IF(G6=0,0,IF(G6<2,1,IF(G6<3,2,3)))","v":3}]
[3,"Mastered"]